[Event "POR-ch Absolute 2019"]
[Site "Portimao"]
[Date "2019.09.15"]
[Round "9.1"]
[White "Leonardo, Joao"]
[Black "Rego, Pedro Filipe"]
[Result "1-0"]
[ECO "A05"]
[WhiteElo "2177"]
[BlackElo "2235"]
[Annotator "NA"]
[PlyCount "106"]
[EventDate "2019.09.07"]
[EventType "tourn"]
[EventCountry "POR"]
[SourceTitle "playchess.com"]
[Source "ChessBase"]
[SourceQuality "1"]
[TimeControl "5400+30"]

1. Nf3 {[%emt 0:00:00]} Nf6 {[%emt 0:00:00]} 2. g3 {[%emt 0:00:00]} d5 {[%emt 0:00:14]} 3. Bg2 {[%emt 0:00:00]} c5 {[%emt 0:00:08]} 4. O-O {[%emt 0:00:02]} Nc6 {[%emt 0:00:01]} 5. d3 {[%emt 0:00:16]} e5 {[%emt 0:01:42]} 6. Nc3 {[%emt 0:00:09]} d4 {[%emt 0:01:25]} 7. Nb1 {[%emt 0:00:09]} Bd6 {[%emt 0:00:38]} 8. e4 {[%emt 0:00:08]} Bg4 {[%emt 0:03:39]} 9. h3 {[%emt 0:00:08]} Bxf3 {[%emt 0:00:03]} 10. Bxf3 {[%emt 0:00:02]} h6 {[%emt 0:00:15]} 11. a4 {[%emt 0:00:03]} Qc7 {[%emt 0:06:15]} 12. Na3 {[%emt 0:00:35]} a6 {[%emt 0:01:06]} 13. Nc4 {[%emt 0:00:14]} O-O {[%emt 0:04:20]} 14. a5 {[%emt 0:01:08]} Nd7 {[%emt 0:01:14]} 15. Bg2 {[%emt 0:00:03]} b5 {[%emt 0:01:22]} 16. axb6 {[%emt 0:00:10]} Nxb6 {[%emt 0:00:07]} 17. Nxd6 {[%emt 0:00:10]} Qxd6 {[%emt 0:00:01]} 18. f4 {[%emt 0:00:09]} c4 {[%emt 0:00:31]} 19. Qg4 {[%emt 0:01:55]} Qg6 {[%emt 0:01:02]} 20. Qf3 {[%emt 0:01:03]} f6 {[%emt 0:01:14]} 21. Bd2 {[%emt 0:00:34]} Qf7 {[%emt 0:00:45]} 22. Ra3 {[%emt 0:01:45]} a5 {[%emt 0:00:13]} 23. Qg4 {[%emt 0:01:12]} Kh8 {[%emt 0:00:13]} 24. Kh2 {[%emt 0:02:21]} Qe7 {[%emt 0:00:10]} 25. Rfa1 {[%emt 0:06:26]} a4 {[%emt 0:00:30]} 26. Bf1 {[%emt 0:01:49]} Nb4 {[%emt 0:02:04]} 27. Qd1 {[%emt 0:00:30]} Rac8 {[%emt 0:00:30]} 28. dxc4 {[%emt 0:04:05]} exf4 {[%emt 0:04:51]} 29. gxf4 {[%emt 0:03:22]} Nxc4 {[%emt 0:00:46]} 30. Bxb4 {[%emt 0:03:40]} Qxb4 {[%emt 0:00:30]} 31. Rxa4 {[%emt 0:00:30]} Qd2+ {[%emt 0:00:30]} 32. Qxd2 {[%emt 0:00:30]} Nxd2 {[%emt 0:00:30]} 33. Bd3 {[%emt 0:00:30]} Rfe8 {[%emt 0:00:30]} 34. Kg2 {[%emt 0:00:30]} Nxe4 {[%emt 0:00:30]} 35. Rxd4 {[%emt 0:00:30]} Nc5 {[%emt 0:00:30]} 36. Bg6 {[%emt 0:00:30]} Ne6 {[%emt 0:00:30]} 37. Rda4 {[%emt 0:00:30]} Rf8 {[%emt 0:00:30]} 38. Re1 {[%emt 0:00:30]} Nc5 {[%emt 0:00:30]} 39. Rc4 {[%emt 0:00:30]} f5 {[%emt 0:00:30]} 40. Re5 {[%emt 0:00:30]} Ne4 {[%emt 0:00:30]} 41. Rxc8 {[%emt 0:00:30]} Rxc8 {[%emt 0:00:30]} 42. Rxf5 {[%emt 0:00:30]} Nf6 {[%emt 0:00:30]} 43. Re5 {[%emt 0:00:30]} Kg8 {[%emt 0:00:30]} 44. Kf3 {[%emt 0:00:30]} Nd7 {[%emt 0:00:30]} 45. Re8+ {[%emt 0:00:30]} Rxe8 {[%emt 0:00:30]} 46. Bxe8 {[%emt 0:00:30]} Nb6 {[%emt 0:00:30]} 47. b3 {[%emt 0:00:30]} Kf8 {[%emt 0:00:30]} 48. Bc6 {[%emt 0:00:30]} Ke7 {[%emt 0:00:30]} 49. Be4 {[%emt 0:00:30]} Kd6 {[%emt 0:00:30]} 50. Ke3 {[%emt 0:00:30]} Kc5 {[%emt 0:00:30]} 51. c3 {[%emt 0:00:30]} Nc8 {[%emt 0:00:30]} 52. Kd3 {[%emt 0:00:30]} Nd6 {[%emt 0:00:30]} 53. Bg6 {[%emt 0:00:30]} Nb5 {[%emt 0:00:30]} 1-0

[Event "POR-ch Absolute 2019"]
[Site "Portimao"]
[Date "2019.09.15"]
[Round "9.2"]
[White "Fidalgo, Andre Neves"]
[Black "Rocha, Sergio"]
[Result "1/2-1/2"]
[ECO "E06"]
[WhiteElo "2261"]
[BlackElo "2356"]
[Annotator "NA"]
[PlyCount "83"]
[EventDate "2019.09.07"]
[EventType "tourn"]
[EventCountry "POR"]
[SourceTitle "playchess.com"]
[Source "ChessBase"]
[SourceQuality "1"]
[TimeControl "5400+30"]

1. d4 {[%emt 0:00:00]} Nf6 {[%emt 0:00:00]} 2. c4 {[%emt 0:00:00]} e6 {[%emt 0:00:00]} 3. g3 {[%emt 0:00:00]} d5 {[%emt 0:00:00]} 4. Nf3 {[%emt 0:00:00]} Be7 {[%emt 0:00:00]} 5. Bg2 {[%emt 0:00:05]} O-O {[%emt 0:00:03]} 6. O-O {[%emt 0:00:06]} dxc4 {[%emt 0:00:03]} 7. Qc2 {[%emt 0:00:07]} b6 {[%emt 0:00:13]} 8. Ne5 {[%emt 0:07:16]} Nd5 {[%emt 0:00:23]} 9. Nxc4 {[%emt 0:01:20]} Bb7 {[%emt 0:00:22]} 10. a3 {[%emt 0:02:24]} Nd7 {[%emt 0:01:02]} 11. e4 {[%emt 0:00:42]} N5f6 {[%emt 0:00:08]} 12. Rd1 {[%emt 0:00:50]} Qc8 {[%emt 0:00:12]} 13. Nc3 {[%emt 0:01:14]} c5 {[%emt 0:00:40]} 14. d5 {[%emt 0:01:13]} e5 {[%emt 0:04:59]} 15. f4 {[%emt 0:04:23]} exf4 {[%emt 0:01:25]} 16. Bxf4 {[%emt 0:05:52]} Ba6 {[%emt 0:01:51]} 17. Ne3 {[%emt 0:04:34]} Nh5 {[%emt 0:00:31]} 18. Nf5 {[%emt 0:05:32]} Re8 {[%emt 0:01:12]} 19. d6 {[%emt 0:02:14]} Bf6 {[%emt 0:03:37]} 20. Nd5 {[%emt 0:00:29]} Kh8 {[%emt 0:00:47]} 21. Nc7 {[%emt 0:03:50]} Be5 {[%emt 0:04:04]} 22. Bxe5 {[%emt 0:02:30]} Rxe5 {[%emt 0:00:07]} 23. Qa4 {[%emt 0:01:48]} Bb7 {[%emt 0:00:21]} 24. Ne7 {[%emt 0:00:54]} Qd8 {[%emt 0:00:05]} 25. Nxa8 {[%emt 0:00:17]} Bxa8 {[%emt 0:00:04]} 26. Nc6 {[%emt 0:02:26]} Bxc6 {[%emt 0:00:05]} 27. Qxc6 {[%emt 0:00:05]} Nhf6 {[%emt 0:00:06]} 28. Re1 {[%emt 0:01:16]} h5 {[%emt 0:00:13]} 29. Rad1 {[%emt 0:09:16]} Qe8 {[%emt 0:01:01]} 30. Bh3 {[%emt 0:00:36]} Kg8 {[%emt 0:01:00]} 31. Re3 {[%emt 0:03:44]} Ng4 {[%emt 0:00:21]} 32. Bxg4 {[%emt 0:00:13]} hxg4 {[%emt 0:00:04]} 33. Rde1 {[%emt 0:01:13]} Qe6 {[%emt 0:00:12]} 34. Qa8+ {[%emt 0:02:09]} Kh7 {[%emt 0:00:17]} 35. Qd8 {[%emt 0:00:44]} Kg6 {[%emt 0:02:00]} 36. Qe7 {[%emt 0:02:47]} Qxe7 {[%emt 0:00:13]} 37. dxe7 {[%emt 0:00:06]} Rxe7 {[%emt 0:00:03]} 38. e5 {[%emt 0:00:59]} Kf5 {[%emt 0:00:19]} 39. Rf1+ {[%emt 0:03:06]} Kg5 {[%emt 0:01:28]} 40. Rfe1 {[%emt 0:00:00]} Kf5 {[%emt 0:00:00]} 41. Rf1+ {[%emt 0:00:00]} Kg5 {[%emt 0:00:00]} 42. Rfe1 {[%emt 0:00:00]} 1/2-1/2

[Event "POR-ch Absolute 2019"]
[Site "Portimao"]
[Date "2019.09.14"]
[Round "9.3"]
[White "Sousa, Andre Ventura"]
[Black "Veiga, Jose Francisco R P N"]
[Result "1-0"]
[ECO "B27"]
[WhiteElo "2362"]
[BlackElo "2345"]
[Annotator "NA"]
[PlyCount "53"]
[EventDate "2019.09.07"]
[EventType "tourn"]
[EventCountry "POR"]
[SourceTitle "playchess.com"]
[Source "ChessBase"]
[SourceQuality "1"]
[TimeControl "5400+30"]

1. e4 {[%emt 0:00:00]} c5 {[%emt 0:00:17]} 2. Nf3 {[%emt 0:00:00]} b6 {[%emt 0:00:07]} 3. d4 {[%emt 0:00:00]} cxd4 {[%emt 0:00:08]} 4. Nxd4 {[%emt 0:00:00]} Bb7 {[%emt 0:00:06]} 5. Nc3 {[%emt 0:00:00]} a6 {[%emt 0:00:11]} 6. Be3 {[%emt 0:00:29]} e6 {[%emt 0:00:48]} 7. Qd2 {[%emt 0:02:37]} Bb4 {[%emt 0:03:35]} 8. f3 {[%emt 0:00:03]} Ne7 {[%emt 0:00:33]} 9. a3 {[%emt 0:13:54]} Bxc3 {[%emt 0:00:20]} 10. Qxc3 {[%emt 0:00:23]} d5 {[%emt 0:00:15]} 11. e5 {[%emt 0:02:32]} Nbc6 {[%emt 0:02:36]} 12. Nxc6 {[%emt 0:08:01]} Nxc6 {[%emt 0:00:21]} 13. O-O-O {[%emt 0:00:15]} Rc8 {[%emt 0:00:25]} 14. f4 {[%emt 0:02:34]} Na5 {[%emt 0:08:56]} 15. Qe1 {[%emt 0:06:48]} Nc4 {[%emt 0:03:46]} 16. Bd4 {[%emt 0:01:49]} b5 {[%emt 0:03:25]} 17. Bd3 {[%emt 0:06:14]} a5 {[%emt 0:00:36]} 18. Kb1 {[%emt 0:02:54]} O-O {[%emt 0:03:09]} 19. h4 {[%emt 0:02:59]} b4 {[%emt 0:01:46]} 20. axb4 {[%emt 0:03:10]} axb4 {[%emt 0:01:11]} 21. Qxb4 {[%emt 0:00:03]} Qc7 {[%emt 0:03:32]} 22. b3 {[%emt 0:05:06]} Rb8 {[%emt 0:01:08]} 23. Kc1 {[%emt 0:01:55]} Rfc8 {[%emt 0:02:09]} 24. Qc3 {[%emt 0:05:33]} Ba6 {[%emt 0:08:20]} 25. bxc4 {[%emt 0:01:13]} dxc4 {[%emt 0:00:22]} 26. Be4 {[%emt 0:00:25]} Rd8 {[%emt 0:00:36]} 27. Bf2 {[%emt 0:01:59]} 1-0

[Event "POR-ch Absolute 2019"]
[Site "Portimao"]
[Date "2019.09.15"]
[Round "9.4"]
[White "Dias, Paulo"]
[Black "Galego, Luis"]
[Result "0-1"]
[ECO "E11"]
[WhiteElo "2322"]
[BlackElo "2501"]
[Annotator "ChessBase"]
[PlyCount "65"]
[EventDate "2019.09.07"]
[EventType "tourn"]
[EventCountry "POR"]
[SourceTitle "playchess.com"]
[Source "ChessBase"]
[SourceQuality "1"]
[TimeControl "5400+30"]

1. d4 {[%emt 0:00:00]} Nf6 {[%emt 0:03:06]} 2. c4 {[%emt 0:00:00]} e6 {[%emt 0:00:18]} 3. Nf3 {[%emt 0:00:01]} Bb4+ {[%emt 0:00:36]} 4. Nbd2 {[%emt 0:01:03]} O-O {[%emt 0:02:25]} 5. a3 {[%emt 0:00:28]} Be7 {[%emt 0:01:11]} 6. e4 {[%emt 0:00:06]} d6 {[%emt 0:00:01]} 7. Bd3 {[%emt 0:01:04]} Nc6 {[%emt 0:00:47]} 8. O-O {[%emt 0:08:26]} a5 {[%emt 0:00:25]} 9. Rb1 {[%emt 0:04:16]} e5 {[%emt 0:01:28]} 10. d5 {[%emt 0:04:27]} Nb8 {[%emt 0:00:07]} 11. b4 {[%emt 0:02:38]} axb4 {[%emt 0:01:29]} 12. axb4 {[%emt 0:00:11]} Na6 {[%emt 0:00:38]} 13. Re1 {[%emt 0:06:57]} Nh5 {[%emt 0:03:00]} 14. Nf1 {[%emt 0:11:16]} g6 {[%emt 0:01:37]} 15. Bh6 {[%emt 0:04:15]} Ng7 {[%emt 0:00:10]} 16. Ne3 {[%emt 0:14:53]} f5 {[%emt 0:04:57]} 17. exf5 {[%emt 0:03:59]} gxf5 {[%emt 0:00:02]} 18. c5 {[%emt 0:01:32]} e4 {[%emt 0:02:40]} 19. Bxa6 {[%emt 0:05:50]} Rxa6 {[%emt 0:02:43]} 20. b5 {[%emt 0:00:49]} Ra3 {[%emt 0:06:20]} 21. cxd6 {[%emt 0:03:09]} Bxd6 {[%emt 0:08:20]} 22. Bg5 {[%emt 0:02:11]} Qe8 {[%emt 0:00:37]} 23. Nc4 {[%emt 0:01:07]} Rxf3 {[%emt 0:00:32]} 24. Nxd6 {[%emt 0:09:21]} cxd6 {[%emt 0:00:31]} 25. gxf3 {[%emt 0:00:44]} Qg6 {[%emt 0:00:03]} 26. Qd2 {[%emt 0:07:12]} h6 {[%emt 0:00:34]} 27. fxe4 {[%emt 0:02:34]} fxe4 {[%emt 0:04:00]} 28. Rb3 {[%emt 0:00:13]} hxg5 {[%emt 0:00:18]} 29. Rc1 {[%emt 0:02:20]} Nf5 {[%emt 0:01:48]} 30. Rc7 {[%emt 0:02:19]} Nh4 {[%emt 0:04:41]} 31. Qc2 {[%emt 0:00:36]} Bf5 {[%emt 0:00:51]} 32. Rxb7 {[%emt 0:01:31]} Nf3+ {[%emt 0:01:04]} 33. Rxf3 0-1

[Event "POR-ch Absolute 2019"]
[Site "Portimao"]
[Date "2019.09.15"]
[Round "9.5"]
[White "Fernandes, Antonio"]
[Black "Damaso, Rui"]
[Result "1/2-1/2"]
[ECO "B07"]
[WhiteElo "2368"]
[BlackElo "2416"]
[Annotator "NA"]
[PlyCount "44"]
[EventDate "2019.09.07"]
[EventType "tourn"]
[EventCountry "POR"]
[SourceTitle "playchess.com"]
[Source "ChessBase"]
[SourceQuality "1"]
[TimeControl "5400+30"]

1. e4 {[%emt 0:00:02]} d6 {[%emt 0:12:02]} 2. d4 {[%emt 0:02:29]} Nf6 {[%emt 0:00:31]} 3. Nc3 {[%emt 0:01:36]} c6 {[%emt 0:00:17]} 4. a4 {[%emt 0:09:30]} e5 {[%emt 0:09:43]} 5. dxe5 {[%emt 0:04:01]} dxe5 $14 {[%emt 0:01:01]} 6. Qxd8+ {[%emt 0:00:07]} Kxd8 {[%emt 0:00:03]} 7. Bc4 {[%emt 0:00:09]} Ke8 {[%emt 0:00:08]} 8. Nf3 {[%emt 0:01:22]} Bd6 {[%emt 0:00:42]} 9. Be3 {[%emt 0:42:35]} Nbd7 {[%emt 0:13:45]} 10. O-O-O {[%emt 0:00:53]} Bb4 {[%emt 0:05:30]} 11. Bd2 {[%emt 0:15:52]} Ng4 {[%emt 0:08:19]} 12. Rhf1 {[%emt 0:00:35]} h5 {[%emt 0:01:54]} 13. Ng5 {[%emt 0:08:57]} Nh6 {[%emt 0:06:55]} 14. f4 {[%emt 0:00:05]} Nb6 {[%emt 0:00:51]} 15. Bb3 {[%emt 0:00:07]} Bg4 {[%emt 0:01:02]} 16. Rde1 {[%emt 0:00:17]} f6 {[%emt 0:01:07]} 17. h3 {[%emt 0:00:47]} exf4 {[%emt 0:04:28]} 18. Nf3 {[%emt 0:01:39]} Bxf3 {[%emt 0:03:50]} 19. gxf3 {[%emt 0:03:04]} Nd7 {[%emt 0:07:58]} 20. Bxf4 {[%emt 0:01:50]} Nf7 {[%emt 0:00:14]} 21. Bd2 {[%emt 0:00:31]} Nc5 {[%emt 0:00:32]} 22. f4 {[%emt 0:01:03]} Rd8 {[%emt 0:02:19]} 1/2-1/2